fUST/lending_fUST_20250829
["ID","MTS","AMOUNT","RATE_DAILY","PERIOD"]
[381973381,1756463432700,-160.0,0.00024443,2]
[381973383,1756463432714,-11358.84933845,0.00024443,2]
[381973386,1756463432724,-232.6790651,0.00024443,2]
[381973387,1756463432733,-194.875,0.00024647,7]
[381973389,1756463432742,-380.0,0.00024658,2]
[381973391,1756463432752,-2081.87378226,0.00024774,2]
[381973393,1756463432761,-810.1166591,0.000248,2]
[381973395,1756463432771,-285.58196675,0.00024823,2]
[381973397,1756463432782,-420.0,0.00024854,2]
[381973399,1756463432791,-300.0,0.00024854,2]
[381973401,1756463432801,-263.0,0.00024854,2]
[381973403,1756463432810,-313.0,0.00024854,2]
[381973405,1756463432820,-378.67,0.0002489,10]
[381973407,1756463432829,-315.56,0.0002489,10]
[381973409,1756463432838,-262.97,0.0002489,10]
[381973411,1756463432847,-81819.8608464,0.000249,2]
[381973413,1756463432857,-2265.77,0.000249,7]
[381973415,1756463432866,-160.0,0.00024922,2]
[381973417,1756463432875,-160.0,0.00024922,2]
[381973419,1756463432884,-425.57542551,0.00024922,2]
[381973421,1756463432893,-845.57753514,0.00024922,2]
[381973423,1756463432902,-160.0,0.00024922,2]
[381973425,1756463432912,-217.30324474,0.00024922,2]
[381973427,1756463432921,-216.21406313,0.00024922,2]
[381973429,1756463432930,-1680.0,0.00024968,2]
[381973431,1756463432940,-500.0,0.000256,2]
[381973433,1756463432949,-500.0,0.0002595,2]
[381973435,1756463432958,-4294.92165991,0.00026,30]
[381973437,1756463432968,-221.858437,0.00026676,2]
[381973439,1756463432978,-425.57542551,0.00027,7]
[381973441,1756463432987,-784.0,0.00027233,2]
[381973443,1756463432996,-155.5,0.00027307,7]
[381973445,1756463433005,-151.39,0.00027307,7]
[381973447,1756463433015,-151.47,0.00027319,7]
[381973449,1756463433024,-285.58196675,0.00027342,2]
[381973451,1756463433034,-81819.8608464,0.00027397,2]
[381973453,1756463433045,-810.1166591,0.00027397,2]
[381973455,1756463433056,-566.93,0.000274,7]
[381973457,1756463433066,-155.5,0.00027407,15]
[381973459,1756463433075,-151.39,0.00027407,15]
[381973461,1756463433084,-151.47,0.00027419,15]
[381973463,1756463433094,-155.51442929,0.00027507,15]
[381973464,1756463433103,-151.39,0.00027507,15]
[381973465,1756463433112,-151.47,0.00027519,15]
[381973466,1756463433121,-151.39,0.00027607,15]
[381973467,1756463433132,-151.49,0.00027619,15]
[381973468,1756463433141,-226.346684,0.00027648,2]
[381973469,1756463433151,-151.39,0.00027707,15]
[381973470,1756463433160,-2714.11809892,0.00027708,2]
[381973471,1756463433169,-151.39,0.00027807,15]
[381973472,1756463433178,-151.39,0.00027907,15]
[381973473,1756463433187,-845.57753514,0.00028,7]
[381973474,1756463433197,-151.39,0.00028007,15]
[381973475,1756463433207,-151.39,0.00028107,15]
[381973477,1756463433216,-151.39,0.00028207,15]
[381973479,1756463433227,-151.39,0.00028307,15]
[381973481,1756463433237,-151.39,0.00028407,15]
[381973483,1756463433247,-151.39,0.00028507,15]
[381973485,1756463433258,-151.39,0.00028607,15]
[381973487,1756463433268,-2265.77,0.000287,7]
[381973489,1756463433279,-151.39,0.00028707,15]
[381973491,1756463433288,-151.39,0.00028807,15]
[381973493,1756463433299,-151.4,0.00028907,15]
[381973495,1756463433308,-285.58196675,0.00029862,2]
[381973497,1756463433318,-304.71046937,0.00030057,4]
[381974096,1756463440490,-500.0,0.00024899,2]
[381974099,1756463440511,-500.0,0.00024899,2]
[381974101,1756463440524,-500.0,0.00024899,2]
[381974103,1756463440535,-500.0,0.00024899,2]
[381974105,1756463440545,-500.0,0.00024899,2]
[381974107,1756463440555,-500.0,0.00024899,2]
[381974109,1756463440564,-500.0,0.00024899,2]
[381974111,1756463440574,-500.0,0.00024899,2]
[381974113,1756463440584,-345.44995333,0.00024899,2]
[381974115,1756463440594,-386.27492628,0.00024899,2]
[381974117,1756463440603,-500.0,0.00024899,2]
[381974119,1756463440613,-500.0,0.00024899,2]
[381974121,1756463440623,-500.0,0.00024899,2]
[381974123,1756463440633,-500.0,0.00024899,2]
[381974125,1756463440643,-500.0,0.00024899,2]
[381974127,1756463440653,-500.0,0.00024899,2]
[381974129,1756463440663,-500.0,0.00024899,2]
[381974130,1756463440673,-500.0,0.00024899,2]
[381974133,1756463440683,-500.0,0.00024899,2]
[381974134,1756463440693,-500.0,0.00024899,2]
[381974136,1756463440704,-638.48886797,0.00024899,2]
[381974138,1756463440717,-500.0,0.00024899,2]
[381974141,1756463440728,-2698.86794618,0.00030057,4]
[381974143,1756463440742,-149.999999,0.00030062,14]
[381974144,1756463440753,-350.56,0.000301,7]
[381974146,1756463440763,-226.346684,0.00031073,2]
[381974148,1756463440772,-2714.11809892,0.00031074,2]
[381974150,1756463440785,-566.93,0.000311,7]
[381974152,1756463440795,-285.58196675,0.00032381,2]
[381974155,1756463440805,-221.858437,0.00033165,2]
[381974156,1756463440815,-219.14,0.00034173,10]
[381974159,1756463440825,-81819.8608464,0.00034183,2]
[381974161,1756463440835,-810.1166591,0.00034183,2]
[381974163,1756463440844,-3161.05049721,0.00034193,2]
[381974168,1756463440885,-10991.99999998,0.00034193,2]
[381974711,1756463446419,-150.51,0.00027422,15]
[381974713,1756463446430,-150.51,0.00027522,15]
[381974715,1756463446440,-49323.45254081,0.00034193,2]
[381974717,1756463446449,-2714.11809892,0.00034439,2]
[381974720,1756463446458,-226.346684,0.00034497,2]
[381974722,1756463446468,-163639.721693,0.00034651,2]
[381974724,1756463446477,-8101.166591,0.00034651,2]
[381974726,1756463446486,-887.67,0.00034652,3]
[381974728,1756463446497,-151.91,0.00034652,3]
[381974730,1756463446506,-802.21,0.00034652,3]
[381974732,1756463446517,-401.11,0.00034652,3]
[381974734,1756463446526,-200.55,0.00034652,3]
[381974736,1756463446535,-601.7,0.00034652,3]
[381974737,1756463446546,-425.57542551,0.00034661,7]
[381974739,1756463446555,-5670.8166137,0.00034662,2]
[381974741,1756463446564,-306.39869877,0.00034671,7]
[381974743,1756463446574,-12503.12362757,0.00034672,2]
[381974746,1756463446589,-715.41477221,0.00034672,2]
[381974748,1756463446601,-13003.49999963,0.00034672,2]
[381974750,1756463446615,-822.15529376,0.00034672,2]
[381974766,1756463446750,-41.86449605,0.00034672,2]
[381980368,1756463675460,238.215124,0.00013699,2]
[381980436,1756464349134,-201.90658981,0.00019006,2]
[381980439,1756464437083,-172.54893167,0.00018816,2]
[381980440,1756464437106,-4798.09341019,0.00019006,2]
[381980441,1756464437127,-238.215124,0.00020187,2]
[381980442,1756464437155,-480.0,0.00022079,2]
[381980443,1756464437183,-1000.0,0.00023138,2]
[381980444,1756464437203,-482.681555,0.00024715,2]
[381980445,1756464437224,-300.0,0.0002496,2]
[381980446,1756464437244,-1200.0,0.0002496,2]
[381980447,1756464437263,-216.21406313,0.0002496,2]
[381980448,1756464437283,-160.0,0.00024961,2]
[381980449,1756464437303,-425.57542551,0.00024961,2]
[381980450,1756464437323,-1200.0,0.00024961,2]
[381980451,1756464437345,-358.84515648,0.0002497,2]
[381980452,1756464437365,-30297.1752509,0.00025417,2]
[381980453,1756464437385,-500.0,0.000255,2]
[381980454,1756464437405,-213.158183,0.00025556,2]
[381980455,1756464437427,-238.215124,0.00026676,2]
[381980456,1756464437447,-420.0,0.00027041,2]
[381980457,1756464437467,-371.0,0.00027041,2]
[381980458,1756464437489,-150.51,0.00027322,7]
[381980459,1756464437508,-7979.76382235,0.00027785,2]
[381980469,1756464549119,-160.0,0.0002,7]
[381980472,1756464596020,2980.16003572,0.0002,7]
[381980473,1756464596040,163.30812329,0.0002,7]
[381980474,1756464596061,468.22340358,0.0002,7]
[381980486,1756464632464,-650.542962,0.0002,7]
[381980487,1756464632477,-445.29286803,0.0002,7]
[381980496,1756464638381,-282.98927842,0.00019999,2]
[381980693,1756464640459,-217.01072158,0.00019999,2]
[381980695,1756464640469,-500.0,0.00019999,2]
[381980698,1756464640480,-265.12462951,0.00019999,2]
[381980700,1756464640490,-145712.47260738,0.0002,7]
[381980702,1756464640499,-216.21406313,0.00024,7]
[381980715,1756464640613,-216.21406313,0.00024,7]
[381980717,1756464640624,-425.57542551,0.0002471,2]
[381980719,1756464640634,-160.0,0.0002471,2]
[381980721,1756464640644,-5000.0,0.0002471,2]
[381980723,1756464640653,-216.21406313,0.0002471,2]
[381980725,1756464640663,-160.0,0.00024958,2]
[381980727,1756464640672,-1357.05904946,0.000254,2]
[381980729,1756464640682,-2020.23617765,0.00027785,2]
[381980731,1756464640691,-311.61,0.000278,7]
[381980733,1756464640701,-323.312969,0.0002846,2]
[381980735,1756464640711,-226.3466889,0.00028599,2]
[381980737,1756464640720,-8720.4610683,0.00028644,2]
[381980739,1756464640730,-666.0,0.00028766,2]
[381980740,1756464640739,-1357.05904946,0.000289,2]
[381980742,1756464640749,-175.337191,0.00029589,120]
[381980744,1756464640759,-158.95491423,0.00030057,7]
[381980747,1756464640770,-1357.05904946,0.000324,2]
[381980748,1756464640780,-257.6,0.00032877,10]
[381980750,1756464640790,-155.9,0.00033165,34]
[381980752,1756464640799,-238.215124,0.00033165,2]
[381980754,1756464640808,-172.6586968,0.000332,117]
[381980756,1756464640818,-930.306695,0.00033272,2]
[381980759,1756464640834,-496.15,0.00033882,2]
[381980761,1756464640844,-200.0,0.0003398,3]
[381980762,1756464640853,-607.7020181,0.00034182,2]
[381980765,1756464640863,-845.57753514,0.00034443,2]
[381980767,1756464640873,-160.0,0.00034443,2]
[381980769,1756464640883,-217.30324474,0.00034443,2]
[381980771,1756464640893,-400.0,0.0003459,120]
[381980772,1756464640904,-285.58196675,0.000346,2]
[381980775,1756464640921,-1812.61,0.000347,14]
[381980777,1756464640931,-503.94,0.000347,7]
[381980779,1756464640941,-1000.0,0.00035,120]
[381980781,1756464640951,-168.0,0.00035261,2]
[381980783,1756464640960,-311.61,0.000353,7]
[381980785,1756464640970,-334.30852656,0.00035396,2]
[381980787,1756464640979,-214.47908914,0.00035485,7]
[381980789,1756464640989,-606715.43415405,0.00035486,7]
[381980822,1756464641283,-5689.1106718,0.00035486,7]
[381981058,1756464643539,-2601.87916527,0.00035486,7]
[381981061,1756464643557,-488.63121997,0.00035486,7]
[381981335,1756464646471,-199.0,0.00029489,120]
[381981337,1756464646483,-8413.56277587,0.00035406,2]
[381981340,1756464646496,-212374.61177617,0.00035486,7]
[381981344,1756464646526,-4694.46829724,0.00035486,7]
[381981346,1756464646541,-2230.55386598,0.00035486,7]
[381986448,1756464766263,190.572099,0.00013699,2]
[381986451,1756464917219,-216.21406313,0.00024,7]
[381986452,1756464917245,-199.0,0.00029489,120]
[381986453,1756464917268,-502.03135035,0.00032183,7]
[381986454,1756464917291,-155.9,0.00032273,32]
[381986455,1756464917315,-151.0,0.00035496,7]
[381986456,1756464917340,-151.0,0.00035496,7]
[381986457,1756464917365,-151.0,0.00035496,7]
[381986458,1756464917389,-151.0,0.00035496,7]
[381986459,1756464917412,-155.511963,0.00035496,7]
[381986460,1756464917437,-1812.62,0.000355,14]
[381986461,1756464917460,-403.15,0.000355,7]
[381986462,1756464917485,-218.13,0.000355,7]
[381986463,1756464917509,-151.0,0.00035506,7]
[381986464,1756464917535,-151.0,0.00035506,7]
[381986465,1756464917558,-845.57753514,0.00035616,10]
[381986466,1756464917581,-480.0,0.00035616,10]
[381986467,1756464917605,-480.0,0.00035616,10]
[381986468,1756464917628,-480.0,0.00035616,10]
[381986469,1756464917652,-480.0,0.00035616,10]
[381986470,1756464917676,-480.0,0.00035616,10]
[381986471,1756464917701,-480.0,0.00035616,10]
[381986472,1756464917724,-480.0,0.00035616,10]
[381986473,1756464917849,-400.0,0.00035616,10]
[381986474,1756464917874,-480.0,0.00035616,10]
[381986475,1756464917898,-602.11154852,0.00035616,10]
[381986476,1756464917922,-626.54556458,0.00035616,10]
[381986477,1756464917946,-480.0,0.00035616,10]
[381986478,1756464917969,-480.0,0.00035616,10]
[381986479,1756464917993,-465.3223314,0.00035616,10]
[381986480,1756464918016,-480.0,0.00035616,10]
[381986481,1756464918041,-480.0,0.00035616,10]
[381986482,1756464918066,-480.0,0.00035616,10]
[381986483,1756464918090,-480.0,0.00035616,10]
[381986484,1756464918118,-224.61763811,0.00035616,10]
[381986485,1756464918143,-480.0,0.00035616,10]
[381986486,1756464918168,-480.0,0.00035616,10]
[381986487,1756464918195,-480.0,0.00035616,10]
[381986488,1756464918219,-480.0,0.00035616,10]
[381986489,1756464918243,-480.0,0.00035616,10]
[381986490,1756464918268,-480.0,0.00035616,10]
[381986491,1756464918293,-489.1185761,0.00035616,10]
[381986492,1756464918317,-480.0,0.00035616,10]
[381986493,1756464918342,-480.0,0.00035616,10]
[381986494,1756464918365,-480.71512697,0.00035616,10]
[381986495,1756464918391,-480.0,0.00035616,10]
[381986496,1756464918418,-480.0,0.00035616,10]
[381986497,1756464918442,-485.2199376,0.00035616,10]
[381986498,1756464918467,-480.0,0.00035616,10]
[381986499,1756464918490,-480.0,0.00035616,10]
[381986500,1756464918515,-480.0,0.00035616,10]
[381986501,1756464918539,-480.0,0.00035616,10]
[381986502,1756464918565,-480.0,0.00035616,10]
[381986503,1756464918589,-480.0,0.00035616,10]
[381986504,1756464918613,-480.0,0.00035616,10]
[381986505,1756464918638,-480.0,0.00035616,10]
[381986506,1756464918663,-481.85307742,0.00035616,10]
[381986507,1756464918688,-480.0,0.00035616,10]
[381986508,1756464918712,-480.0,0.00035616,10]
[381986509,1756464918737,-480.0,0.00035616,10]
[381986510,1756464918762,-480.0,0.00035616,10]
[381986511,1756464918786,-480.0,0.00035616,10]
[381986512,1756464918812,-480.0,0.00035616,10]
[381986513,1756464918837,-480.0,0.00035616,10]
[381986514,1756464918862,-480.0,0.00035616,10]
[381986515,1756464918887,-480.0,0.00035616,10]
[381986516,1756464918913,-457.36039685,0.00035616,10]
[381986517,1756464918938,-480.0,0.00035616,10]
[381986518,1756464918963,-480.0,0.00035616,10]
[381986519,1756464918989,-480.0,0.00035616,10]
[381986520,1756464919018,-480.0,0.00035616,10]
[381986521,1756464919042,-440.66007537,0.00035616,10]
[381986522,1756464919066,-480.0,0.00035616,10]
[381986523,1756464919097,-480.0,0.00035616,10]
[381986524,1756464919122,-480.0,0.00035616,10]
[381986525,1756464919147,-480.0,0.00035616,10]
[381986526,1756464919172,-480.0,0.00035616,10]
[381986527,1756464919197,-480.0,0.00035616,10]
[381986528,1756464919222,-480.0,0.00035616,10]
[381986529,1756464919246,-497.33316676,0.00035616,10]
[381986530,1756464919273,-336.34477065,0.00035616,10]
[381986531,1756464919296,-480.0,0.00035616,10]
[381986532,1756464919320,-480.0,0.00035616,10]
[381986533,1756464919343,-480.0,0.00035616,10]
[381986534,1756464919367,-480.0,0.00035616,10]
[381986535,1756464919390,-480.0,0.00035616,10]
[381986536,1756464919413,-246.43036511,0.00035616,10]
[381986537,1756464919437,-480.0,0.00035616,10]
[381986538,1756464919461,-480.0,0.00035616,10]
[381986539,1756464919484,-480.0,0.00035616,10]
[381986540,1756464919507,-480.0,0.00035616,10]
[381986541,1756464919531,-480.0,0.00035616,10]
[381986542,1756464919554,-480.0,0.00035616,10]
[381986543,1756464919577,-480.0,0.00035616,10]
[381986544,1756464919602,-480.0,0.00035616,10]
[381986545,1756464919625,-480.0,0.00035616,10]
[381986546,1756464919651,-480.0,0.00035616,10]
[381986547,1756464919674,-480.0,0.00035616,10]
[381986548,1756464919697,-480.0,0.00035616,10]
[381986549,1756464919721,-480.0,0.00035616,10]
[381986550,1756464919745,-480.0,0.00035616,10]
[381986551,1756464919769,-480.0,0.00035616,10]
[381986552,1756464919792,-480.0,0.00035616,10]
[381986553,1756464919815,-480.0,0.00035616,10]
[381986554,1756464919838,-480.0,0.00035616,10]
[381986555,1756464919861,-480.0,0.00035616,10]
[381986556,1756464919885,-480.0,0.00035616,10]
[381986557,1756464919909,-480.0,0.00035616,10]
[381986558,1756464919933,-480.0,0.00035616,10]
[381986559,1756464919956,-480.0,0.00035616,10]
[381986560,1756464919982,-480.0,0.00035616,10]
[381986561,1756464920006,-434.34059067,0.00035616,10]
[381986562,1756464920029,-480.0,0.00035616,10]
[381986563,1756464920052,-480.0,0.00035616,10]
[381986564,1756464920076,-480.0,0.00035616,10]
[381986565,1756464920102,-482.08202655,0.00035616,10]
[381986566,1756464920125,-480.0,0.00035616,10]
[381986567,1756464920149,-480.0,0.00035616,10]
[381986568,1756464920174,-480.0,0.00035616,10]
[381986569,1756464920198,-480.0,0.00035616,10]
[381986570,1756464920222,-281.56863862,0.00035616,10]
[381986571,1756464920245,-480.44135089,0.00035616,10]
[381986572,1756464920270,-480.0,0.00035616,10]
[381986573,1756464920294,-481.00835336,0.00035616,10]
[381986574,1756464920318,-569.98402718,0.00035616,10]
[381986575,1756464920445,-480.0,0.00035616,10]
[381986576,1756464920470,-480.0,0.00035616,10]
[381986577,1756464920495,-480.0,0.00035616,10]
[381986578,1756464920520,-480.0,0.00035616,10]
[381986579,1756464920544,-481.00978081,0.00035616,10]
[381986580,1756464920568,-480.0,0.00035616,10]
[381986581,1756464920592,-561.91713147,0.00035616,10]
[381986582,1756464920616,-480.95212872,0.00035616,10]
[381986583,1756464920640,-480.0,0.00035616,10]
[381986584,1756464920664,-480.0,0.00035616,10]
[381986585,1756464920689,-480.0,0.00035616,10]
[381986586,1756464920714,-480.0,0.00035616,10]
[381986587,1756464920738,-575.50853324,0.00035616,10]
[381986588,1756464920762,-480.0,0.00035616,10]
[381986589,1756464920787,-480.0,0.00035616,10]
[381986590,1756464920810,-480.0,0.00035616,10]
[381986591,1756464920834,-480.0,0.00035616,10]
[381986592,1756464920857,-480.0,0.00035616,10]
[381986593,1756464920881,-480.0,0.00035616,10]
[381986594,1756464920904,-481.38090822,0.00035616,10]
[381986595,1756464920927,-480.0,0.00035616,10]
[381986596,1756464920950,-481.77803692,0.00035616,10]
[381986597,1756464920974,-480.50169768,0.00035616,10]
[381986598,1756464921000,-480.0,0.00035616,10]
[381986599,1756464921025,-481.02882827,0.00035616,10]
[381986600,1756464921048,-480.0,0.00035616,10]
[381986601,1756464921072,-480.0,0.00035616,10]
[381986602,1756464921097,-480.0,0.00035616,10]
[381986603,1756464921121,-483.72762424,0.00035616,10]
[381986604,1756464921146,-480.0,0.00035616,10]
[381986605,1756464921171,-480.0,0.00035616,10]
[381986606,1756464921195,-480.0,0.00035616,10]
[381986607,1756464921218,-480.0,0.00035616,10]
[381986608,1756464921242,-500.0,0.00035616,10]
[381986609,1756464921266,-482.4246975,0.00035616,10]
[381986610,1756464921290,-480.0,0.00035616,10]
[381986611,1756464921314,-480.0,0.00035616,10]
[381986612,1756464921337,-480.0,0.00035616,10]
[381986613,1756464921361,-480.0,0.00035616,10]
[381986614,1756464921385,-480.0,0.00035616,10]
[381986615,1756464921410,-480.0,0.00035616,10]
[381986616,1756464921435,-480.0,0.00035616,10]
[381986617,1756464921459,-480.0,0.00035616,10]
[381986618,1756464921484,-287.860876,0.00035616,7]
[381986619,1756464921510,-480.0,0.00035616,10]
[381986620,1756464921535,-480.0,0.00035616,10]
[381986621,1756464921559,-480.0,0.00035616,10]
[381986622,1756464921583,-151.0,0.00035616,7]
[381986623,1756464921607,-480.0,0.00035616,10]
[381986624,1756464921632,-374.8796452,0.00035616,10]
[381986625,1756464921656,-480.0,0.00035616,10]
[381986626,1756464921680,-480.0,0.00035616,10]
[381986627,1756464921706,-480.0,0.00035616,10]
[381986628,1756464921730,-480.0,0.00035616,10]
[381986629,1756464921755,-480.0,0.00035616,10]
[381986630,1756464921780,-480.0,0.00035616,10]
[381986631,1756464921807,-480.0,0.00035616,10]
[381986632,1756464921832,-480.0,0.00035616,10]
[381986633,1756464921859,-480.0,0.00035616,10]
[381986634,1756464921887,-480.0,0.00035616,10]
[381986635,1756464921912,-481.64893881,0.00035616,10]
[381986636,1756464921936,-480.0,0.00035616,10]
[381986637,1756464921961,-480.0,0.00035616,10]
[381986638,1756464921986,-480.0,0.00035616,10]
[381986639,1756464922012,-480.0,0.00035616,7]
[381986640,1756464922037,-480.0,0.00035616,10]
[381986641,1756464922062,-480.0,0.00035616,10]
[381986642,1756464922088,-480.0,0.00035616,10]
[381986643,1756464922116,-480.0,0.00035616,10]
[381986644,1756464922141,-167.62323,0.00035616,7]
[381986645,1756464922167,-480.0,0.00035616,10]
[381986646,1756464922194,-480.0,0.00035616,10]
[381986647,1756464922218,-480.0,0.00035616,10]
[381986648,1756464922241,-480.0,0.00035616,10]
[381986649,1756464922268,-480.0,0.00035616,10]
[381986650,1756464922293,-480.0,0.00035616,10]
[381986651,1756464922320,-480.0,0.00035616,10]
[381986652,1756464922345,-483.78232797,0.00035616,10]
[381986653,1756464922370,-480.0,0.00035616,10]
[381986654,1756464922395,-484.66045483,0.00035616,10]
[381986655,1756464922421,-480.0,0.00035616,10]
[381986656,1756464922446,-481.73731652,0.00035616,10]
[381986657,1756464922471,-480.0,0.00035616,10]
[381986658,1756464922495,-480.0,0.00035616,10]
[381986659,1756464922521,-482.52706861,0.00035616,10]
[381986660,1756464922545,-481.52177546,0.00035616,10]
[381986661,1756464922569,-480.0,0.00035616,10]
[381986662,1756464922593,-480.0,0.00035616,10]
[381986663,1756464922617,-480.0,0.00035616,10]
[381986664,1756464922641,-480.0,0.00035616,10]
[381986665,1756464922666,-480.0,0.00035616,10]
[381986666,1756464922690,-481.34885417,0.00035616,10]
[381986667,1756464922715,-484.02573615,0.00035616,10]
[381986668,1756464922739,-482.30509431,0.00035616,10]
[381986669,1756464922763,-480.0,0.00035616,10]
[381986670,1756464922789,-480.0,0.00035616,10]
[381986671,1756464922814,-480.0,0.00035616,10]
[381986672,1756464922839,-480.0,0.00035616,10]
[381986673,1756464922863,-482.2009961,0.00035616,10]
[381986674,1756464922887,-480.0,0.00035616,10]
[381986675,1756464922911,-531.15538614,0.00035616,10]
[381986676,1756464922935,-325.27917315,0.00035616,10]
[381986677,1756464922960,-480.0,0.00035616,10]
[381986678,1756464922983,-480.0,0.00035616,10]
[381986679,1756464923008,-480.0,0.00035616,10]
[381986680,1756464923135,-484.97939632,0.00035616,10]
[381986681,1756464923161,-482.24392658,0.00035616,10]
[381986682,1756464923189,-483.48086954,0.00035616,10]
[381986683,1756464923214,-594.26584238,0.00035616,10]
[381986684,1756464923242,-482.05788726,0.00035616,10]
[381986685,1756464923271,-480.0,0.00035616,10]
[381986686,1756464923299,-480.0,0.00035616,10]
[381986687,1756464923324,-480.0,0.00035616,10]
[381986688,1756464923350,-151.0,0.00035616,7]
[381986689,1756464923373,-480.0,0.00035616,10]
[381986690,1756464923398,-480.0,0.00035616,10]
[381986691,1756464923426,-480.0,0.00035616,10]
[381986692,1756464923452,-480.0,0.00035616,10]
[381986693,1756464923477,-480.0,0.00035616,10]
[381986694,1756464923505,-480.0,0.00035616,10]
[381986695,1756464923530,-480.0,0.00035616,10]
[381986696,1756464923556,-928.21,0.00035616,10]
[381986697,1756464923584,-480.0,0.00035616,10]
[381986698,1756464923608,-480.0,0.00035616,10]
[381986699,1756464923632,-480.0,0.00035616,10]
[381986700,1756464923656,-480.0,0.00035616,10]
[381986701,1756464923681,-482.34994194,0.00035616,10]
[381986702,1756464923705,-482.81567257,0.00035616,10]
[381986703,1756464923729,-480.0,0.00035616,10]
[381986704,1756464923758,-492.48,0.00035616,10]
[381986705,1756464923790,-480.0,0.00035616,10]
[381986706,1756464923817,-480.0,0.00035616,10]
[381986707,1756464923843,-480.0,0.00035616,10]
[381986708,1756464923869,-481.95103155,0.00035616,10]
[381986709,1756464923896,-480.0,0.00035616,10]
[381986710,1756464923921,-480.0,0.00035616,10]
[381986711,1756464923945,-480.0,0.00035616,10]
[381986712,1756464923971,-480.0,0.00035616,10]
[381986713,1756464923996,-480.0,0.00035616,10]
[381986714,1756464924025,-480.0,0.00035616,10]
[381986715,1756464924049,-698.91,0.00035616,10]
[381986716,1756464924073,-410.59023622,0.00035616,10]
[381986717,1756464924102,-520.92,0.00035616,10]
[381986718,1756464924125,-482.45231582,0.00035616,10]
[381986719,1756464924150,-480.0,0.00035616,10]
[381986720,1756464924177,-151.0,0.00035616,7]
[381986721,1756464924203,-4537.15,0.00035616,10]
[381986722,1756464924229,-480.0,0.00035616,10]
[381986723,1756464924255,-480.0,0.00035616,10]
[381986724,1756464924282,-480.0,0.00035616,10]
[381986725,1756464924307,-480.0,0.00035616,10]
[381986726,1756464924334,-480.0,0.00035616,10]
[381986727,1756464924359,-480.0,0.00035616,10]
[381986728,1756464924383,-481.85581537,0.00035616,10]
[381986729,1756464924409,-480.0,0.00035616,10]
[381986730,1756464924434,-481.5950688,0.00035616,10]
[381986731,1756464924470,-480.0,0.00035616,10]
[381986732,1756464924497,-480.0,0.00035616,10]
[381986733,1756464924525,-480.0,0.00035616,10]
[381986734,1756464924550,-837.92,0.00035616,10]
[381986735,1756464924575,-480.0,0.00035616,10]
[381986736,1756464924600,-480.0,0.00035616,10]
[381986737,1756464924627,-481.40467018,0.00035616,10]
[381986738,1756464924655,-480.0,0.00035616,10]
[381986739,1756464924679,-151.0,0.00035616,7]
[381986740,1756464924704,-480.0,0.00035616,10]
[381986741,1756464924728,-151.0,0.00035616,7]
[381986742,1756464924754,-481.53735005,0.00035616,10]
[381986743,1756464924782,-480.0,0.00035616,10]
[381986744,1756464924807,-480.0,0.00035616,10]
[381986745,1756464924832,-481.96265363,0.00035616,10]
[381986746,1756464924856,-481.33782871,0.00035616,10]
[381986747,1756464924881,-480.0,0.00035616,10]